Cogmind - Beta 12 @@@ ROGUE MODE // 2023.11.27 @ 02:45:11 Player: DreamAR Result: Destroyed by S-27 Virus with Autogun Performance ------------- Evolutions (3) 1500 Regions Visited (12) 2400 Robots Destroyed (59) 295 Value Destroyed (3909) 3909 Prototype IDs (40) 800 Alien Tech Used (0) 0 Bonus (3936) 3936 TOTAL SCORE: 12840 Bonus ------- High Alert Combat Kills 216 Follower Combat Kills 1259 Entered Garrisons 800 Used RIF Installer 1500 Aligned with FarCom 300 Friendly Fire -139 Cogmind --------- Core Integrity 0/700 Matter 227/300 Energy 99/100 System Corruption 0% Temperature Cool (0) Movement Core (50) Location -7/Garrison Parts ------- > --- POWER (2) -------- (None) > --- PROPULSION (4) --- (None) > --- UTILITY (5) ------ Improved Melee Analysis Suite Improved Melee Analysis Suite Graphene Brace Relay Coupler [Grunt] (33) Relay Coupler [Specialist] (25) > --- WEAPON (2) ------- Flail > --- INVENTORY (5) ---- Light Nuclear Core Light Nuclear Core Heavy Rocket Launcher Remote Datajack Remote Datajack Peak State ------------ > --- POWER ------------ Micro Nuclear Core Micro Nuclear Core > --- PROPULSION ------- Flying Fortress v7 > --- UTILITY ---------- Large Storage Unit Improved Melee Analysis Suite Relay Coupler [Hunter] > --- WEAPON ----------- Remote Datajack Katana > --- INVENTORY -------- Micro Nuclear Core Weight Redist. System Improved Terrain Scanner Improved Melee Analysis Suite Target Analyzer Medium Reactive Plating Medium Reactive Plating Shield Generator Relay Coupler [Swarmer] Relay Coupler [Sentry] Relay Coupler [Sentry] Relay Coupler [Specialist] Relay Coupler [Specialist] Datajack Remote Datajack [Rating: 62] Favorites ----------- Power Micro Nuclear Core Engine Ion Engine Power Core Micro Nuclear Core Propulsion Light Treads Treads Light Treads Leg Makeshift Leg Hover Unit Gravmag System Flight Unit Flying Fortress v7 Utility Large Storage Unit Device Shield Generator Storage Large Storage Unit Processor Improved Melee Analysis Suite Hackware Relay Coupler [Sentry] Protection Hardened Medium Armor Plating Weapon Shotgun Energy Gun Particle Gun Ballistic Gun Shotgun Launcher Improved Grenade Launcher Special Weapon Remote Datajack Impact Weapon Flail Slashing Weapon Chainsword Special Melee Weapon Datajack Build | -11 -10 -10 -10 -9 -8 -8 -8 -8 -7 -7 -7 -7 ------- Run | Jun Mat Min Exi Min Mat Gar Mat Gar Fac Gar Fac Gar Slots Evolved 6 | . . . . . 4 . . . 2 . . . Power 1 | . . . . . 1 . . . . . . . Propulsion 2 | . . . . . 2 . . . . . . . Utility 3 | . . . . . 1 . . . 2 . . . Weapon . | . . . . . . . . . . . . . Parts Attached 141 | 8 7 . 3 2 4 23 12 35 9 19 17 2 Power 17 | 1 3 . . . 1 5 . 3 . 3 1 . Engine 8 | 1 3 . . . 1 2 . 1 . . . . Core 9 | . . . . . . 3 . 2 . 3 1 . Reactor . | . . . . . . . . . . . . . Propulsion 38 | 2 . . . 2 1 . . 15 3 8 6 1 Treads 2 | 2 . . . . . . . . . . . . Leg 9 | . . . . 2 . . . 7 . . . . Wheel . | . . . . . . . . . . . . . Hover 3 | . . . . . . . . . . . 3 . Flight 24 | . . . . . 1 . . 8 3 8 3 1 Utility 46 | 2 2 . . . 1 11 9 5 5 3 7 1 Device 20 | 1 1 . . . . 5 2 3 3 1 4 . Storage 2 | 1 1 . . . . . . . . . . . Processor 4 | . . . . . . 1 . . 1 . 2 . Hackware 14 | . . . . . . 4 3 2 1 2 1 1 Protection 6 | . . . . . 1 1 4 . . . . . Artifact . | . . . . . . . . . . . . . Weapon 40 | 3 2 . 3 . 1 7 3 12 1 5 3 . Energy Gun 3 | 1 . . . . 1 1 . . . . . . Energy Cannon . | . . . . . . . . . . . . . Ballistic Gun 7 | 2 2 . 2 . . 1 . . . . . . Ballistic Cannon . | . . . . . . . . . . . . . Launcher 6 | . . . . . . . 1 5 . . . . Special Weapon 7 | . . . . . . 2 . 2 . 2 1 . Impact Weapon 2 | . . . . . . . . . . . 2 . Slashing Weapon 10 | . . . . . . 1 2 4 1 2 . . Piercing Weapon . | . . . . . . . . . . . . . Special Melee Weapon 5 | . . . 1 . . 2 . 1 . 1 . . Unidentified Prototypes 1 | . . . . . . . . 1 . . . . Parts Lost 31 | . . . . . . 3 3 3 1 14 . 7 Power 4 | . . . . . . 1 . 1 . 1 . 1 Propulsion 15 | . . . . . . . . 1 1 8 . 5 Utility 9 | . . . . . . 1 3 . . 4 . 1 Weapon 3 | . . . . . . 1 . 1 . 1 . . Highest Loss Streak 14 | . . . . . . 2 1 2 1 14 . 5 To Critical Strikes . | . . . . . . . . . . . . . Average Slot Usage (%) 88 | . 100 100 85 99 74 70 71 91 99 71 95 75 Engine 7 | . 14 14 14 14 18 8 . 1 . . . . Core 7 | . . . . . . 9 18 16 15 10 14 4 Treads 9 | . 28 28 28 8 . . . . . . . . Leg 6 | . . . . 19 4 . . 19 . . . . Flight 7 | . . . . . 6 9 9 9 30 20 29 18 Device 10 | . 14 14 14 14 9 7 1 3 15 7 14 9 Storage 9 | . 14 14 14 14 9 9 9 9 . . . . Processor 5 | . . . . . . 5 9 9 15 13 12 15 Hackware 2 | . . . . . . 1 2 3 7 7 6 10 Ballistic Gun 10 | . 25 28 . 28 11 2 . . . . . . Special Weapon 2 | . . . . . . 5 9 3 . 1 . . Slashing Weapon 4 | . . . . . . 5 8 9 14 7 . . Special Melee Weapon 1 | . . . 14 . . . . . . 1 . . Naked Turns . | . . . . . . . . . . . . . Heaviest Build 49 | 12 33 33 33 33 41 41 49 49 19 21 16 16 Greatest Support 55 | 40 40 40 40 40 50 50 50 55 25 24 27 16 Greatest Overweight (x) 10 | . . . . 10 1 . . 3 1 1 3 1 Average Overweight (x) . | . . . . . . . . . . . . . Largest Inventory Capacity 15 | 8 15 15 15 15 15 15 15 15 15 5 5 5 Average Capacity 13 | 7 12 15 15 15 15 15 15 15 5 5 5 5 Most Carried 15 | 7 11 15 15 15 14 15 15 15 8 5 5 5 Average Carried 12 | 4 8 13 14 14 12 14 14 13 5 4 4 4 Final Capacity 15 | 8 15 15 15 15 15 15 15 15 5 5 5 5 Final Carried 15 | 6 11 15 14 15 12 15 15 9 5 5 5 5 Class Distribution -------------------- 53% | Mutant 18% | Bothacker-Mutant 12% | Commander-Mutant 12% | Scavenger-Sprinter Dominant Class ---------------- Mutant | -10/Materials Mutant | -10/Mines Mutant | -10/Exiles Mutant | -9/Mines Mutant | -8/Materials Bothacker-Mutant | -8/Garrison Commander-Mutant | -8/Materials Bothacker-Mutant | -8/Garrison Scavenger-Sprinter | -7/Factory Scavenger-Sprinter | -7/Garrison Scavenger-Sprinter | -7/Factory Sprinter | -7/Garrison Resources | -11 -10 -10 -10 -9 -8 -8 -8 -8 -7 -7 -7 -7 ----------- Run | Jun Mat Min Exi Min Mat Gar Mat Gar Fac Gar Fac Gar Matter Collected 2715 | 258 273 180 . 240 . 472 316 506 . 225 140 105 Remotely . | . . . . . . . . . . . . . Salvage Created 1864 | 130 332 162 . 162 . 348 168 242 . 54 140 126 Parts 104 | 9 22 12 . 13 . 16 10 12 . 3 2 5 Haulers Intercepted 2 | . 1 . . . . . 1 . . . . . Recyclers Shooed 1 | . 1 . . . . . . . . . . . Parts Field Recycled . | . . . . . . . . . . . . . Retrieved Matter . | . . . . . . . . . . . . . Parts Self-Destructed . | . . . . . . . . . . . . . Prevented . | . . . . . . . . . . . . . Kills | -11 -10 -10 -10 -9 -8 -8 -8 -8 -7 -7 -7 -7 ------- Run | Jun Mat Min Exi Min Mat Gar Mat Gar Fac Gar Fac Gar Combat Hostiles Destroyed 44 | . 8 6 . 6 . 7 3 8 . 1 1 4 Melee 11 | . . . . . . 4 1 4 . 1 . 1 Guns 23 | . 8 6 . 6 . 3 . . . . . . AOE 6 | . . . . . . . 2 4 . . . . Classes Destroyed 13 | 2 4 . . 2 . 3 . 2 . . . . Worker 2 | . . . . 1 . . 1 . . . . . Tunneler 3 | 2 . . . 1 . . . . . . . . Hauler 2 | . 1 . . . . . 1 . . . . . Recycler 1 | 1 . . . . . . . . . . . . Watcher 7 | . 2 . . . . 2 1 . . . 2 . Swarmer 11 | . 3 3 . 2 . . . . . . . 3 Grunt 22 | . 5 3 . 3 . 1 3 6 . 1 . . Brawler 1 | . . . . . . 1 . . . . . . Protector 1 | . . . . . . . . 1 . . . . Sentry 3 | . . . . . . . . 1 . . 1 1 Demolisher 1 | . . . . 1 . . . . . . . . Hunter 1 | . . . . . . 1 . . . . . . Programmer 4 | . . . . . . 4 . . . . . . Best Kill Streak 5 | 1 5 3 . 3 . 3 3 2 . 1 2 3 Combat Bots Only 5 | . 5 3 . 3 . 3 2 2 . 1 1 3 Max Kills in Single Turn 3 | 1 1 1 . 1 . 1 3 2 . 1 1 1 Gunslinging . | . . . . . . . . . . . . . Exploded 2 | . . . . . . . 2 2 . . . . Melee 1 | . . . . . . 1 1 1 . 1 . 1 Uniques/NPCs Destroyed . | . . . . . . . . . . . . . Combat | -11 -10 -10 -10 -9 -8 -8 -8 -8 -7 -7 -7 -7 -------- Run | Jun Mat Min Exi Min Mat Gar Mat Gar Fac Gar Fac Gar Damage Taken 4384 | 35 254 205 . 207 . 902 402 683 96 968 . 632 Core 1003 | . 63 32 . 27 . 126 15 36 16 416 . 272 Absorbed by Shields 429 | . 48 83 . 80 . 154 4 . . 60 . . Regen/Repaired (Parts) 43 | . . . . . . . . . 43 . . . Core Remaining (%) 72 | 100 . . . 51 . . . 67 . . . . Volleys Fired 174 | 9 28 16 . 24 . 56 15 19 . 7 . . Largest 2 | 2 2 2 . 2 . 2 1 1 . 1 . . Hottest 88 | 60 46 46 . 46 . 88 36 36 . 7 . . Shots Fired 283 | 18 56 32 . 48 . 86 16 20 . 7 . . Gun 214 | 18 56 32 . 48 . 60 . . . . . . Cannon . | . . . . . . . . . . . . . Launcher 20 | . . . . . . . 3 17 . . . . Special 49 | . . . . . . 26 13 3 . 7 . . Kinetic 175 | 9 56 32 . 48 . 30 . . . . . . Thermal 30 | . . . . . . 30 . . . . . . Explosive 20 | . . . . . . . 3 17 . . . . Electromagnetic 9 | 9 . . . . . . . . . . . . Robot Hit Streak 15 | 3 7 15 . 6 . 14 4 8 . 2 . . Robot Miss Streak 8 | 2 4 8 . 6 . 2 1 1 . 1 . . Penetration Max . | . . . . . . . . . . . . . Secondary Targets 1 | . . 1 . . . . . . . . . . Max Gunslinging Chain 1 | . . 1 . . . . . . . . . . Shots Hit Robots 258 | 10 36 23 6 35 . 75 19 27 . 10 3 14 Core Hits 108 | 3 22 12 . 14 . 23 9 23 . 1 . 1 Critical Kills . | . . . . . . . . . . . . . Critical Parts Destroyed 5 | . . . . 1 . . . . . . 1 3 Critical Strikes 8 | . . . . 1 . 1 1 1 . . 1 3 Destroy 1 | . . . . 1 . . . . . . . . Smash 4 | . . . . . . . . . . . 1 3 Sever 3 | . . . . . . 1 1 1 . . . . Melee Attacks 152 | . . . 6 . . 41 21 30 3 12 11 28 Impact 39 | . . . . . . . . . . . 11 28 Slashing 94 | . . . . . . 38 21 24 3 8 . . Piercing . | . . . . . . . . . . . . . Sneak Attacks 16 | . . . 5 . . 2 . 6 . . 1 2 Combat Hostiles 3 | . . . . . . . . . . . 1 2 Follow-up Attacks 4 | . . . . . . . . . . . . 4 Damage Inflicted 5841 | 157 500 383 . 488 . 1075 693 1610 . 97 231 607 Guns 2025 | 117 500 383 . 472 . 553 . . . . . . Cannons . | . . . . . . . . . . . . . Explosions 1623 | 40 . . . . . . 315 1268 . . . . Melee 2177 | . . . . . . 522 378 342 . 97 231 607 Ramming 16 | . . . . 16 . . . . . . . . Kinetic 1759 | 25 500 383 . 472 . 379 . . . . . . Thermal 214 | 40 . . . . . 174 . . . . . . Explosive 1583 | . . . . . . . 315 1268 . . . . Electromagnetic 92 | 92 . . . . . . . . . . . . Impact 838 | . . . . . . . . . . . 231 607 Slashing 1339 | . . . . . . 522 378 342 . 97 . . Piercing . | . . . . . . . . . . . . . Highest Corruption 8 | . . . . . . 8 8 8 . . . . Average Corruption 7 | . . . . . . 6 8 8 . . . . Corruption Purged . | . . . . . . . . . . . . . Corruption Blocked . | . . . . . . . . . . . . . Effects 87 | . . . . . . 23 17 47 . . . . Message Errors 25 | . . . . . . 7 2 16 . . . . Matter Fused 16 | . . . . . . 2 5 9 . . . . Heat Flow Errors 16 | . . . . . . 4 3 9 . . . . Energy Discharges 13 | . . . . . . 2 3 8 . . . . Parts Rejected 1 | . . . . . . 1 . . . . . . Data Loss (minor) 10 | . . . . . . 6 3 1 . . . . Data Loss (major) 4 | . . . . . . 1 . 3 . . . . Misfires 2 | . . . . . . . 1 1 . . . . Overload Shots . | . . . . . . . . . . . . . Overflow Damage 362 | . . . . . . 9 49 56 . . 124 124 Projectiles . | . . . . . . . . . . . . . Explosions 30 | . . . . . . . 2 28 . . . . Melee 332 | . . . . . . 9 47 28 . . 124 124 Knockbacks 1 | . . . . . . . . . . . . 1 Impact 1 | . . . . . . . . . . . . 1 Kinetic . | . . . . . . . . . . . . . Secondary . | . . . . . . . . . . . . . Self-Inflicted Damage 70 | 35 . . . . . . . 35 . . . . Shots 2 | 1 . . . . . . . 1 . . . . Rammed 2 | . . . . 2 . . . . . . . . Targets Rammed 2 | . . . . 2 . . . . . . . . Kicked . | . . . . . . . . . . . . . Crushed . | . . . . . . . . . . . . . Highest Temperature 365 | 32 4 15 . 1 . 343 312 365 39 12 1 2 Average Temperature 90 | 15 1 4 . 1 . 99 119 103 10 5 1 1 Received Heat Transfer 1146 | . 120 94 . 90 . 18 168 210 45 311 . 90 Effects 4 | . . . . . . 3 . 1 . . . . Shutdowns 1 | . . . . . . . . 1 . . . . Energy Bleed 1 | . . . . . . 1 . . . . . . Interference 1 | . . . . . . 1 . . . . . . Matter Decay 1 | . . . . . . 1 . . . . . . Siege Activations . | . . . . . . . . . . . . . Robots Corrupted . | . . . . . . . . . . . . . Combat Hostiles . | . . . . . . . . . . . . . Parts Fried 6 | 1 . . . . . . . . . . 5 . Impact Corruptions 10 | . . . . . . . . . . . 5 5 Robots Melted . | . . . . . . . . . . . . . Combat Hostiles . | . . . . . . . . . . . . . Parts Melted . | . . . . . . . . . . . . . Heat Transferred 437 | 50 . . . . . 387 . . . . . . Parts Sabotaged . | . . . . . . . . . . . . . Parts Stolen . | . . . . . . . . . . . . . Parts Stripped . | . . . . . . . . . . . . . Power Chain Reactions 1 | 1 . . . . . . . . . . . . Missiles Intercepted . | . . . . . . . . . . . . . Alert | -11 -10 -10 -10 -9 -8 -8 -8 -8 -7 -7 -7 -7 ------- Run | Jun Mat Min Exi Min Mat Gar Mat Gar Fac Gar Fac Gar Peak Influence 1282 | 15 230 95 . 151 7 758 909 1282 696 511 247 236 Initial 672 | . 9 . . . 7 4 369 334 672 361 187 125 Average 344 | 5 65 48 . 40 7 292 538 921 674 363 168 190 Maximum Alert Level 4 | . 1 . . . . 3 3 4 2 2 1 1 Low Security (%) 49 | 100 98 100 . 100 100 32 . . . . 66 49 Level 1 15 | . 1 . . . . 45 22 2 . 85 33 50 Level 2 17 | . . . . . . 20 55 13 100 14 . . Level 3 14 | . . . . . . . 21 70 . . . . Level 4 2 | . . . . . . . . 14 . . . . Level 5 . | . . . . . . . . . . . . . High Security . | . . . . . . . . . . . . . Max Security . | . . . . . . . . . . . . . Squads Dispatched 8 | . 1 . . . . . 3 . 4 . . . Investigation 3 | . . . . . . . 1 . 2 . . . Extermination 1 | . . . . . . . . . 1 . . . Reinforcement 3 | . 1 . . . . . 2 . . . . . Assault 1 | . . . . . . . . . 1 . . . Garrison . | . . . . . . . . . . . . . Intercept . | . . . . . . . . . . . . . Searches Triggered . | . . . . . . . . . . . . . Construction Impeded . | . . . . . . . . . . . . . Haulers Reinforced . | . . . . . . . . . . . . . Active Scanning Responses . | . . . . . . . . . . . . . Cargo Convoy Interrupts . | . . . . . . . . . . . . . Stealth | -11 -10 -10 -10 -9 -8 -8 -8 -8 -7 -7 -7 -7 --------- Run | Jun Mat Min Exi Min Mat Gar Mat Gar Fac Gar Fac Gar Distress Signals 5 | . 2 . . . . 1 1 1 . . . . Communications Jammed . | . . . . . . . . . . . . . Distress Signals . | . . . . . . . . . . . . . Times Spotted 158 | . 14 7 . 11 . 24 23 34 6 23 3 13 Peak Tracking Total 12 | . 6 3 . 3 . 4 3 5 7 9 2 12 Tactical Retreats 8 | . . 1 . 1 . 1 1 2 . 2 . . Traps | -11 -10 -10 -10 -9 -8 -8 -8 -8 -7 -7 -7 -7 ------- Run | Jun Mat Min Exi Min Mat Gar Mat Gar Fac Gar Fac Gar Traps Triggered 17 | . . . . . . 3 . 9 1 3 1 . Indirectly . | . . . . . . . . . . . . . Trap Hack Attempts . | . . . . . . . . . . . . . Triggered . | . . . . . . . . . . . . . Disarmed . | . . . . . . . . . . . . . Reprogrammed . | . . . . . . . . . . . . . Reused . | . . . . . . . . . . . . . Traps Extracted . | . . . . . . . . . . . . . Installed . | . . . . . . . . . . . . . Triggered . | . . . . . . . . . . . . . Machines | -11 -10 -10 -10 -9 -8 -8 -8 -8 -7 -7 -7 -7 ---------- Run | Jun Mat Min Exi Min Mat Gar Mat Gar Fac Gar Fac Gar Machines Disabled 15 | . . . . . . 4 4 5 . 1 . 1 Max in Single Turn 2 | . . . . . . 1 2 1 . 1 . 1 Garrison Relay 10 | . . . . . . 4 . 4 . 1 . 1 Machines Repaired . | . . . . . . . . . . . . . Machines Sabotaged . | . . . . . . . . . . . . . Overloaded Fab Kills . | . . . . . . . . . . . . . Hacking | -11 -10 -10 -10 -9 -8 -8 -8 -8 -7 -7 -7 -7 --------- Run | Jun Mat Min Exi Min Mat Gar Mat Gar Fac Gar Fac Gar Machines Accessed 43 | . 1 . 2 1 1 3 12 2 7 1 13 . Terminals 27 | . 1 . . 1 . 3 9 2 2 1 8 . Fabricators 3 | . . . . . . . . . 2 . 1 . Repair Stations 2 | . . . . . . . 1 . 1 . . . Recycling Units 1 | . . . . . . . 1 . . . . . Scanalyzers 3 | . . . . . . . . . 1 . 2 . Garrison Access 5 | . . . . . 1 . 1 . 1 . 2 . Total Hacks 110 | . 4 . 2 3 3 6 37 3 15 3 34 . Successful 53 | . . . 2 1 1 1 20 2 11 1 14 . Failed 57 | . 4 . . 2 2 5 17 1 4 2 20 . Catastrophic 13 | . . . . . . 3 5 . 2 . 3 . Database Lockouts . | . . . . . . . . . . . . . Manual 53 | . 4 . 1 3 . 2 26 . 2 . 15 . Terminals 74 | . 4 . . 3 . 6 32 3 3 3 20 . Fabricators 8 | . . . . . . . . . 6 . 2 . Repair Stations 4 | . . . . . . . 2 . 2 . . . Recycling Units 2 | . . . . . . . 2 . . . . . Scanalyzers 12 | . . . . . . . . . 3 . 9 . Garrison Access 8 | . . . . . 3 . 1 . 1 . 3 . Terminal Hacks 16 | . . . 2 . . 1 7 2 1 1 2 . Record 1 | . . . 1 . . . . . . . . . Robot Analysis 1 | . . . . . . . 1 . . . . . Prototype ID Bank 1 | . . . . . . . 1 . . . . . Open Door 1 | . . . . . . . . 1 . . . . Open DSF 2 | . . . . . . . . . 1 . 1 . Emergency Access Points 3 | . . . . . . 1 . 1 . 1 . . Unreport Threat 4 | . . . . . . . 3 . . . 1 . Locate Traps 1 | . . . . . . . 1 . . . . . Zone Layout 1 | . . . . . . . 1 . . . . . EX-Prototype ID Bank 1 | . . . 1 . . . . . . . . . Fabricator Hacks 3 | . . . . . . . . . 3 . . . Load Schematic 2 | . . . . . . . . . 2 . . . Build 1 | . . . . . . . . . 1 . . . Repair Station Hacks 2 | . . . . . . . . . 2 . . . Scan Component 1 | . . . . . . . . . 1 . . . Repair 1 | . . . . . . . . . 1 . . . Recycling Unit Hacks 1 | . . . . . . . 1 . . . . . Report Inventory 1 | . . . . . . . 1 . . . . . Scanalyzer 6 | . . . . . . . . . 3 . 3 . Insert Component 3 | . . . . . . . . . 1 . 2 . Analyze 3 | . . . . . . . . . 2 . 1 . Garrison Access Hacks 6 | . . . . . 1 . 1 . 1 . 3 . Unlock Access 5 | . . . . . 1 . 1 . 1 . 2 . Coupler Status 1 | . . . . . . . . . . . 1 . Unauthorized Hacks 19 | . . . . 1 . . 11 . 1 . 6 . Terminals 18 | . . . . 1 . . 10 . 1 . 6 . Botnet 17 | . . . . 1 . . 9 . 1 . 6 . Detonate 1 | . . . . . . . 1 . . . . . Fabricators . | . . . . . . . . . . . . . Repair Stations . | . . . . . . . . . . . . . Recycling Units 1 | . . . . . . . 1 . . . . . Tunnel 1 | . . . . . . . 1 . . . . . Scanalyzers . | . . . . . . . . . . . . . Garrison Access . | . . . . . . . . . . . . . Data Cores Recovered 1 | . . . . . . . 1 . . . . . Used . | . . . . . . . . . . . . . Hacking Detections 35 | . 1 . . 1 1 3 9 1 6 1 12 . Full Trace Events 5 | . . . . . . 1 1 . 2 1 . . Feedback Events . | . . . . . . . . . . . . . Feedback Blocked . | . . . . . . . . . . . . . Robot Schematics Acquired . | . . . . . . . . . . . . . Robots Built . | . . . . . . . . . . . . . Authchips . | . . . . . . . . . . . . . Time . | . . . . . . . . . . . . . Total Robot Build Rating . | . . . . . . . . . . . . . Part Schematics Acquired 2 | . . . . . . . . . 1 . 1 . Parts Built 2 | . . . . . . . . . 2 . . . Authchips . | . . . . . . . . . . . . . Time 106 | . . . . . . . . . 106 . . . Total Part Build Rating 12 | . . . . . . . . . 12 . . . Parts Repaired 1 | . . . . . . . . . 1 . . . Time 22 | . . . . . . . . . 22 . . . Parts Recycled . | . . . . . . . . . . . . . Recycled Matter . | . . . . . . . . . . . . . Retrieved Matter . | . . . . . . . . . . . . . Retrieved Components . | . . . . . . . . . . . . . Parts Scanalyzed 3 | . . . . . . . . . 1 . 2 . Part Schematics Acquired 2 | . . . . . . . . . 1 . 1 . Parts Damaged . | . . . . . . . . . . . . . Bothacking | -11 -10 -10 -10 -9 -8 -8 -8 -8 -7 -7 -7 -7 ------------ Run | Jun Mat Min Exi Min Mat Gar Mat Gar Fac Gar Fac Gar Used RIF Installer 3 | . . . . . . 1 . 1 . 1 . . Zone Cloak 1 | . . . . . . . . 1 . . . . Patrol Navigation 1 | . . . . . . . . . . 1 . . Robots Hacked 32 | . . . 5 . . 8 8 2 . 9 . . Non-combat 3 | . . . 3 . . . . . . . . . Combat 29 | . . . 2 . . 8 8 2 . 9 . . Robot Hacks Applied 32 | . . . 5 . . 8 8 2 . 9 . . parse_system 5 | . . . 5 . . . . . . . . . find_garrison 2 | . . . . . . . 2 . . . . . scatter_targeting 1 | . . . . . . 1 . . . . . . overwrite_iff 6 | . . . . . . . 1 . . 5 . . streamctrl_high 3 | . . . . . . 1 . . . 2 . . formatsys_high 15 | . . . . . . 6 5 2 . 2 . . Relay Couplers Released 42 | . . . . . . 19 . 15 . 4 . 4 Machine Destruction 39 | . . . . . . 16 . 15 . 4 . 4 Programmers 3 | . . . . . . 3 . . . . . . Attached 13 | . . . . . . 4 3 2 . 2 1 1 Fabnet Peak Effective % . | . . . . . . . . . . . . . Robots Rewired 9 | . . . . . . 6 . 3 . . . . Allies Hacked 1 | . . . . . . 1 . . . . . . Hacks Repelled . | . . . . . . . . . . . . . Allies | -11 -10 -10 -10 -9 -8 -8 -8 -8 -7 -7 -7 -7 -------- Run | Jun Mat Min Exi Min Mat Gar Mat Gar Fac Gar Fac Gar Total Allies 38 | . . 2 . 3 . 13 6 5 . 9 . . Largest Group 11 | . . 2 2 3 . 10 11 11 . 4 . . Highest-Rated Group 212 | . . 59 59 40 . 196 212 173 . 48 . . Highest-Rated Ally 39 | . . 31 31 16 . 24 24 39 . 12 . . Total Orders 1 | . . . . . . 1 . . . . . . ROAM 1 | . . . . . . 1 . . . . . . Ally Attacks 312 | . . 1 . 29 . 27 88 124 . 43 . . Total Damage 4888 | . . 20 . 242 . 440 1664 2063 . 459 . . Kills 44 | . . . . 3 . 4 14 19 . 4 . . Allies Corrupted . | . . . . . . . . . . . . . Allies Melted . | . . . . . . . . . . . . . Intel | -11 -10 -10 -10 -9 -8 -8 -8 -8 -7 -7 -7 -7 ------- Run | Jun Mat Min Exi Min Mat Gar Mat Gar Fac Gar Fac Gar Robot Analysis Total 1 | . . . . . . . 1 . . . . . Derelict Logs Recovered 3 | . . 2 . 1 . . . . . . . . Drone Launches . | . . . . . . . . . . . . . Drone Recoveries . | . . . . . . . . . . . . . Exploration | -11 -10 -10 -10 -9 -8 -8 -8 -8 -7 -7 -7 -7 ------------- Run | Jun Mat Min Exi Min Mat Gar Mat Gar Fac Gar Fac Gar Turns Passed 7913 | 211 833 741 695 1111 44 1206 588 1310 443 254 310 167 Spaces Moved 7422 | 106 444 422 424 679 52 1538 750 966 567 465 821 188 Core 93 | 1 . . . 1 . . . . . 68 . 23 Treads 1602 | 105 444 422 424 207 . . . . . . . . Legs 948 | . . . . 471 6 . . 471 . . . . Wheels . | . . . . . . . . . . . . . Hover 4 | . . . . . . . . . . . 4 . Flight 4775 | . . . . . 46 1538 750 495 567 397 817 165 Fastest Speed 26 | 50 160 160 160 140 50 50 50 50 29 26 26 26 Average Speed 81 | 158 160 160 160 146 68 50 50 103 31 34 26 33 Slowest Speed 550 | 160 160 160 160 550 210 50 50 330 97 100 275 109 Overloaded Moves 8 | . . . . . . . . . 8 . . . Propulsion Burnouts . | . . . . . . . . . . . . . Robots Hopped 12 | . . . . . . 2 4 2 . 1 1 2 Cave-ins Triggered . | . . . . . . . . . . . . . Exploration Rate (%) 52 | 6 57 86 78 92 4 90 61 79 13 63 20 32 Regions Visited 12 Branch Regions 3 Pre-discovered Areas 5 | . . 2 1 1 . . 1 . . . . . Known Exits Taken 4 | . . . . . 1 . 1 . 1 . 1 . Unknown Exits Taken 5 | 1 1 1 1 1 . . . . . . . . Scrap Searched 4 | . . 2 . 2 . . . . . . . . Spaces Dug 18 | . . . . . . 1 7 1 3 . 5 1 Terrain Destroyed 100 | 3 . . . . . 1 28 59 3 . 5 1 Melee 18 | . . . . . . 1 7 1 3 . 5 1 Projectile . | . . . . . . . . . . . . . AOE 82 | 3 . . . . . . 21 58 . . . . Terrain Rammed . | . . . . . . . . . . . . . Walls Destroyed . | . . . . . . . . . . . . . Machines Disabled . | . . . . . . . . . . . . . Actions | -11 -10 -10 -10 -9 -8 -8 -8 -8 -7 -7 -7 -7 --------- Run | Jun Mat Min Exi Min Mat Gar Mat Gar Fac Gar Fac Gar Total 8848 | 129 515 456 440 743 60 1844 917 1222 829 538 899 256 Wait 570 | . 12 15 . 32 . 116 105 13 220 9 5 43 Move 7386 | 105 443 421 423 678 51 1533 741 961 567 461 818 184 Hop 12 | . . . . . . 2 4 2 . 1 1 2 Pick Up 101 | 7 13 4 2 1 3 27 9 19 4 1 11 . Fast Attach 48 | 6 1 . . 2 . 2 2 7 4 11 11 2 Attach 28 | 1 . . 1 . 3 3 2 6 3 4 5 . Detach 9 | . . . . . . . . . 1 4 3 1 Swap 65 | 1 6 . 2 . 1 18 8 22 2 4 1 . Drop 104 | . 12 . 6 2 2 21 7 26 7 2 17 2 Fire 174 | 9 28 16 . 24 . 56 15 19 . 7 . . Melee 143 | . . . 6 . . 41 21 30 3 11 9 22 Ram . | . . . . . . . . . . . . . Kick . | . . . . . . . . . . . . . Crush 2 | . . . . 2 . . . . . . . . Escape Stasis 195 | . . . . . . 20 . 116 18 23 18 . Rewire 11 | . . . . 2 . 5 3 1 . . . . Trap . | . . . . . . . . . . . . . Miscellaneous . | . . . . . . . . . . . . . Route ------- -11/Junkyard -10/Materials (discovered 2 exits: [*Mat] / [*Min]) -10/Mines (discovered 3 exits: [*Mat x2] / *Exi) -10/Exiles -9/Mines (discovered 2 exits: *Mat x2) -8/Materials -8/Garrison (discovered 3 exits: *Mat x3) -8/Materials (discovered 4 exits: *Fac x3 / Gar) -8/Garrison (discovered 4 exits: *Fac x3 / [*Mat]) -7/Factory -7/Garrison (discovered 3 exits: *Fac x3) -7/Factory (discovered 3 exits: [*Sto] / Gar / Gar) -7/Garrison History --------- Turn | Location | Event 23 | -11/Junkyard | Discovered new exit (range 14) 212 | -11/Junkyard | Entered Materials 308 | -10/Materials | Build established: Mutant 506 | -10/Materials | Discovered new exit (range 8) 888 | -10/Materials | Discovered new exit (range 7) 1045 | -10/Materials | Entered Mines 1294 | -10/Mines | Discovered new exit (range 9) 1396 | -10/Mines | Learned location of Storage (-7) 1435 | -10/Mines | Deemed a non-threat by the Exiles lab entrance 1435 | -10/Mines | Discovered new exit (range 5) 1590 | -10/Mines | Discovered new exit (range 5) 1786 | -10/Mines | Entered Exiles 1786 | -10/Exiles | Accompanied by 2 allies 1816 | -10/Exiles | Led the pair of lost Derelicts to a safe place 1827 | -10/Exiles | Met 8R-AWN 1854 | -10/Exiles | Met EX-HEX 2039 | -10/Exiles | Met EX-DEC 2064 | -10/Exiles | Visited The Gauntlet 2146 | -10/Exiles | Learned location of Zion (-6) 2175 | -10/Exiles | Met EX-BIN 2271 | -10/Exiles | Aligned with FarCom system 2273 | -10/Exiles | Given EX-Vault access code 2311 | -10/Exiles | Opened EX-Vault 2324 | -10/Exiles | Found Flying Fortress v7 2360 | -10/Exiles | Warned to stay clear of 0b10 Research branches 2379 | -10/Exiles | Exiles lab attacked by MAIN.C 2463 | -10/Exiles | Discovered new exit (range 11) 2481 | -10/Exiles | Left Exiles lab with Flying Fortress v7 2481 | -10/Exiles | Entered Mines 3189 | -9/Mines | Assisted by bots powering up and referring to "LRC-V3" 3383 | -9/Mines | Assembled infested the area 3467 | -9/Mines | Discovered new exit (range 6) 3498 | -9/Mines | Discovered new exit (range 10) 3592 | -9/Mines | Entered Materials 3592 | -8/Materials | Evolved 4 slots: Power x1, Propulsion x2, Utility x1 3624 | -8/Materials | Identified exit to Garrison 3636 | -8/Materials | Entered Garrison 3808 | -8/Garrison | Triggered checkpoint 3851 | -8/Garrison | Installed Relay Interface Framework 3854 | -8/Garrison | Discovered new exit (range 13) 3895 | -8/Garrison | Garrison Relay disabled 3920 | -8/Garrison | Triggered checkpoint 3993 | -8/Garrison | Triggered checkpoint 4132 | -8/Garrison | Triggered checkpoint 4302 | -8/Garrison | Triggered checkpoint 4365 | -8/Garrison | Discovered new exit (range 10) 4419 | -8/Garrison | Build established: Bothacker-Mutant 4583 | -8/Garrison | Garrison Relay disabled 4600 | -8/Garrison | Discovered new exit (range 5) 4636 | -8/Garrison | Triggered checkpoint 4659 | -8/Garrison | Garrison Relay disabled 4731 | -8/Garrison | Garrison Relay disabled 4842 | -8/Garrison | Entered Materials 4842 | -8/Materials | Accompanied by 10 allies 5040 | -8/Materials | Discovered new exit (range 12) 5100 | -8/Materials | Build established: Commander-Mutant 5297 | -8/Materials | Discovered new exit (range 8) 5330 | -8/Materials | Discovered new exit (range 15) 5412 | -8/Materials | Identified exit to Garrison 5430 | -8/Materials | Entered Garrison 5430 | -8/Garrison | Accompanied by 11 allies 5444 | -8/Garrison | Triggered checkpoint 5527 | -8/Garrison | Garrison Relay disabled 5536 | -8/Garrison | Triggered checkpoint 5549 | -8/Garrison | Discovered new exit (range 6) 5700 | -8/Garrison | Discovered new exit (range 15) 5726 | -8/Garrison | Triggered checkpoint 5783 | -8/Garrison | Garrison Relay disabled 6064 | -8/Garrison | Triggered checkpoint 6085 | -8/Garrison | Build established: Bothacker-Mutant 6115 | -8/Garrison | Garrison Relay disabled 6177 | -8/Garrison | Discovered new exit (range 10) 6342 | -8/Garrison | Triggered checkpoint 6397 | -8/Garrison | Expanded RIF knowledge: Zone Cloak 6425 | -8/Garrison | Discovered new exit (range 13) 6446 | -8/Garrison | Spotted B-75 Beast 6733 | -8/Garrison | Garrison Relay disabled 6740 | -8/Garrison | Entered Factory 6740 | -7/Factory | Evolved 2 slots: Utility x2 6797 | -7/Factory | Repaired Chainsword 7025 | -7/Factory | Build established: Scavenger-Sprinter 7026 | -7/Factory | Fabricated Field Propulsion Drive? 7127 | -7/Factory | Identified exit to DSF 7140 | -7/Factory | First assault squad dispatched 7183 | -7/Factory | Identified exit to Garrison 7183 | -7/Factory | Entered Garrison 7239 | -7/Garrison | Discovered new exit (range 8) 7260 | -7/Garrison | Triggered checkpoint 7261 | -7/Garrison | Triggered checkpoint 7285 | -7/Garrison | Triggered checkpoint 7286 | -7/Garrison | Garrison Relay disabled 7352 | -7/Garrison | Core integrity fell below 50% 7353 | -7/Garrison | Discovered new exit (range 14) 7414 | -7/Garrison | Lost 14 parts (1p8n4u1w) 7420 | -7/Garrison | Expanded RIF knowledge: Patrol Navigation 7425 | -7/Garrison | Discovered new exit (range 10) 7437 | -7/Garrison | Entered Factory 7628 | -7/Factory | Identified exit to DSF 7695 | -7/Factory | Discovered new exit (range 16) 7738 | -7/Factory | Identified exit to Garrison 7746 | -7/Factory | Identified exit to Garrison 7747 | -7/Factory | Entered Garrison 7788 | -7/Garrison | Triggered checkpoint 7825 | -7/Garrison | Core integrity fell below 20% 7829 | -7/Garrison | Garrison Relay disabled 7855 | -7/Garrison | Lost 5 parts (1p3n1u) 7902 | -7/Garrison | Triggered checkpoint 7914 | -7/Garrison | Destroyed by S-27 Virus with Autogun Last Messages --------------- 07823_ Flail follow-up attack on S-27 Virus. 07823_ S-27 Virus suffers critical hit (Smash). 07823_ Destroyed VTOL Module. 07823_ S-27 Virus system corrupted by crushing effect. 07824_ S-27 Virus system terminally corrupted. 07824_ VTOL Module destroyed. 07827_ Acquired 24 matter. 07829_ Garrison Relay disabled. 07829_ Relay Coupler [NC] tumbles out of relay unit. 07829_ Relay Coupler [Specialist] tumbles out of relay unit. 07829_ Relay Coupler [Grunt] tumbles out of relay unit. 07832_ Acquired Relay Coupler [Grunt]. 07839_ Acquired 26 matter. 07901_ C-17 Slicer knocked back. 07902_ Beams of light sweep through the air. An alarm sounds. 07902_ VTOL Module destroyed. 07902_ Knocked back. 07902_ VTOL Module destroyed. 07902_ Dropped Flail. Garrison Door activated. Map ----- +----------------------------------------------------+ | ?????????????????????????????????????????????????? | | ?????????????????????????????????????????????????? | | ?????????????????????????????????????????????????? | | ?????????????????????????????????????????????????? | | ?????????????????????????????????????????????????? | | ?????????????????????????????????????????????????? | | ?????????????????????????????????????????????????? | | ?????????????????????????????????????????????????? | | ?????????????????????????????????????????????????? | | ?????????????????????????????????????????????????? | | ????????????????ss???????????????????????????????? | | ?????????????????????????????????????????????????? | | ?????????????????????????????????????????????????? | | ?????????????????????????????????????????????????? | | ?????????????????????????????????????????????????? | | ?????????????????????????????????????????????????? | | ????????????????????????#####????????????????????? | | ???????????????????????? #????????????????????? | | ???????????????????????? #????????????????????? | | ???????????????????????? #????????????????????? | | ????????????????????????# #????????????????????? | | ????????????????????????# #????????????????????? | | ????????????????????????# #????????????????????? | | ????????????????????????# #????????????????????? | | ????????????????????????# #????????????????????? | | ????????????????????"???#@ #????????????????????? | | ??????????????"" """" ??#c #????????????????????? | | ??????????????? ?#c #????????????????????? | | ??????????????????# ## #??#?????????????????? | | ??????????????????# c #?? ?????????????????? | | ??????????????????# #?? ?????????????????? | | ??????????????????# ## #?# #????????????????? | | ??????????????? ?# #?# #????????????????? | | ??????????????"" """" ??# #?# #????????????????? | | ????????????????????"???#s #?#s#????????????????? | | ????????????????????????# #?# #????????????????? | | ????????????????????????# s #?# #??????????? #???? | | ????????????????????????# s### ######### ## | | ????????????????????????# | | ????????????????????????# Y | | ????????????????????????# Y | | ????????????????????????####### #### ## #??? | | ??????????????????????????????# #### ## ## | | ??????????????????????????????# # / | | ??????????????????????????????#### | | ?????????????????????????????????# | | ?????????????????????????????????# | | ?????????????????????????????????### ## ## | | ?????????????????????############### ## #??? | | ?????????????????????# | +----------------------------------------------------+ Best States ------------- Heat Dissipation 53 Energy Generation 28 Energy Capacity 400 Matter Stores 300 Matter Capacity 300 Sight Range 16 Terrain Scan Range 16 Terrain Scan Density 10 Armor Coverage 225 Evasion (%) 72 Targeting Accuracy 8 Melee Accuracy 12 Recoil Reduction 2 Offensive Hacking 10 Relay Coupler Types 2 Relay Coupler Value 58 Item Schematics ----------------- Field Propulsion Drive | -7/Factory | Scanalyzed Imp. Remote Datajack | -7/Factory | Scanalyzed Robot Schematics ------------------ None Fabricated ------------ Field Propulsion Drive | x2 | -7/Factory Alien Tech Used ----------------- None Achievements -------------- None Challenges ------------ None Game ------ Seed ArmoredElectronShield Manual? 0 Play Time 02:07:14 Cumulative 61.2 hours Start 2023.11.27 @ 00:33:09 End 2023.11.27 @ 02:45:11 Sessions 1 Manual Loads 0 Difficulty Rogue Special Mode None Game No. 21 Rogue 21 Adventurer 0 Explorer 0 Win Type - Total 0 Types 0/0/0/0/0/0/0/0/0 Lore% 34 Gallery% 50 Achievement% 45 Wizard Run 0 Options --------- ASCII 0 Keyboard 0 Movement Mouse Keybinds 0 Fullscreen 2 Font 24/Smallcaps Map View 76x50 Tactical HUD 1 Map Filters NONE Filters NONE Steam 1 RUN: 78e442ce-05cc-49fc-bd8e-38b5d6e611a7